[Event "*** Titled Tuesday Blitz"]
[Site "Chess.com"]
[Date "2021.04.20"]
[Round "5"]
[White "ajedrez1101"]
[Black "realmadridtv"]
[Result "1-0"]
[WhiteElo "2149"]
[BlackElo "2377"]
[TimeControl "180+1"]
[EndTime "10:55:34 PDT"]
[Termination "ajedrez1101 won by resignation"]

1. b3 {[%clk 0:03:00.9]} 1... d5 {[%clk 0:02:57.8]} 2. Bb2 {[%clk 0:03:00.8]}
2... c5 {[%clk 0:02:58.5]} 3. e3 {[%clk 0:03:01]} 3... Nc6 {[%clk 0:02:58.9]} 4.
Bb5 {[%clk 0:03:00.4]} 4... Nf6 {[%clk 0:02:59.1]} 5. Nf3 {[%clk 0:03:00]} 5...
Bd7 {[%clk 0:02:59.4]} 6. Bxc6 {[%clk 0:02:56]} 6... Bxc6 {[%clk 0:02:59.7]} 7.
Ne5 {[%clk 0:02:56.6]} 7... Bb5 {[%clk 0:02:59.1]} 8. a4 {[%clk 0:02:51.5]} 8...
Ba6 {[%clk 0:02:57.8]} 9. d3 {[%clk 0:02:50.7]} 9... e6 {[%clk 0:02:57.4]} 10.
Nd2 {[%clk 0:02:49.1]} 10... Bd6 {[%clk 0:02:56.6]} 11. f4 {[%clk 0:02:48.1]}
11... Nd7 {[%clk 0:02:53.3]} 12. O-O {[%clk 0:02:26.8]} 12... Nxe5 {[%clk
0:02:43.7]} 13. Bxe5 {[%clk 0:02:15.7]} 13... Bxe5 {[%clk 0:02:39.6]} 14. fxe5
{[%clk 0:02:15.9]} 14... Qg5 {[%clk 0:02:39.7]} 15. Qf3 {[%clk 0:02:09.1]} 15...
O-O {[%clk 0:01:56.5]} 16. Qf4 {[%clk 0:02:09.2]} 16... Qxf4 {[%clk 0:01:53.6]}
17. Rxf4 {[%clk 0:02:08.8]} 17... f6 {[%clk 0:01:51.3]} 18. exf6 {[%clk
0:02:00]} 18... Rxf6 {[%clk 0:01:52.2]} 19. Raf1 {[%clk 0:01:53.3]} 19... Raf8
{[%clk 0:01:52.2]} 20. Rxf6 {[%clk 0:01:50.3]} 20... gxf6 {[%clk 0:01:53.1]} 21.
e4 {[%clk 0:01:49]} 21... b6 {[%clk 0:01:41.3]} 22. exd5 {[%clk 0:01:27.1]}
22... exd5 {[%clk 0:01:42.2]} 23. Rf5 {[%clk 0:01:27.3]} 23... Bb7 {[%clk
0:01:36.1]} 24. Kf2 {[%clk 0:01:27.4]} 24... Kf7 {[%clk 0:01:36.1]} 25. Rh5
{[%clk 0:01:27.1]} 25... Kg6 {[%clk 0:01:35.4]} 26. Rh4 {[%clk 0:01:26.9]} 26...
h5 {[%clk 0:01:27.6]} 27. g3 {[%clk 0:01:26.8]} 27... Bc8 {[%clk 0:01:21.8]} 28.
Rf4 {[%clk 0:01:22.7]} 28... Re8 {[%clk 0:01:18.2]} 29. Nf3 {[%clk 0:01:21.5]}
29... d4 {[%clk 0:00:56.5]} 30. Nh4+ {[%clk 0:01:12.5]} 30... Kg5 {[%clk
0:00:54.6]} 31. Nf3+ {[%clk 0:01:12.1]} 31... Kg6 {[%clk 0:00:54.9]} 32. Nh4+
{[%clk 0:01:12.4]} 32... Kg7 {[%clk 0:00:55.6]} 33. Nf5+ {[%clk 0:01:07.8]}
33... Bxf5 {[%clk 0:00:54.5]} 34. Rxf5 {[%clk 0:01:07.9]} 34... Kg6 {[%clk
0:00:55.1]} 35. Rd5 {[%clk 0:01:08]} 35... Re7 {[%clk 0:00:52.4]} 36. Rd8 {[%clk
0:01:07.4]} 36... Re6 {[%clk 0:00:45.4]} 37. Rd7 {[%clk 0:01:05.2]} 37... a6
{[%clk 0:00:42.9]} 38. Ra7 {[%clk 0:01:01.6]} 38... b5 {[%clk 0:00:31.2]} 39.
axb5 {[%clk 0:00:57.8]} 39... axb5 {[%clk 0:00:32.1]} 40. Rc7 {[%clk 0:00:57.8]}
40... Re5 {[%clk 0:00:31.2]} 41. Rb7 {[%clk 0:00:47.5]} 41... b4 {[%clk
0:00:24.9]} 42. Rc7 {[%clk 0:00:43.2]} 42... Kg5 {[%clk 0:00:23]} 43. Rg7+
{[%clk 0:00:42.3]} 43... Kf5 {[%clk 0:00:21.6]} 44. h3 {[%clk 0:00:40.8]} 44...
Re6 {[%clk 0:00:16.7]} 45. Rc7 {[%clk 0:00:39.8]} 45... Re5 {[%clk 0:00:16.1]}
46. Kf3 {[%clk 0:00:37.9]} 46... Ke6 {[%clk 0:00:16]} 47. Rc8 {[%clk 0:00:30.5]}
47... Kd5 {[%clk 0:00:15.6]} 48. Rd8+ {[%clk 0:00:29]} 48... Ke6 {[%clk
0:00:16.2]} 49. Re8+ {[%clk 0:00:28]} 49... Kf5 {[%clk 0:00:16.6]} 50. Rxe5+
{[%clk 0:00:28]} 50... Kxe5 {[%clk 0:00:13.9]} 51. g4 {[%clk 0:00:27.3]} 51...
hxg4+ {[%clk 0:00:09]} 52. Kxg4 {[%clk 0:00:26.8]} 52... f5+ {[%clk 0:00:07]}
53. Kf3 {[%clk 0:00:26.9]} 53... Ke6 {[%clk 0:00:07.6]} 54. Kf4 {[%clk
0:00:27.4]} 54... Kf6 {[%clk 0:00:08.3]} 55. h4 {[%clk 0:00:27.5]} 55... Kg6
{[%clk 0:00:08.5]} 56. h5+ {[%clk 0:00:27.7]} 56... Kf6 {[%clk 0:00:07.9]} 57.
h6 {[%clk 0:00:27.2]} 57... Kg6 {[%clk 0:00:07.8]} 58. h7 {[%clk 0:00:27.5]}
58... Kxh7 {[%clk 0:00:07.8]} 59. Kxf5 {[%clk 0:00:27.8]} 59... Kg7 {[%clk
0:00:07.8]} 60. Ke5 {[%clk 0:00:28]} 60... Kf7 {[%clk 0:00:08.3]} 61. Kd5 {[%clk
0:00:28.1]} 61... c4 {[%clk 0:00:08.3]} 62. Kxc4 {[%clk 0:00:27.5]} 1-0

[Event "*** Titled Tuesday Blitz"]
[Site "Chess.com"]
[Date "2021.04.20"]
[Round "5"]
[White "Diego_FloresQ"]
[Black "Jenia84"]
[Result "1-0"]
[WhiteElo "2615"]
[BlackElo "2403"]
[TimeControl "180+1"]
[EndTime "10:55:36 PDT"]
[Termination "Diego_FloresQ won by resignation"]

1. e4 {[%clk 0:02:31.7]} 1... e5 {[%clk 0:02:58.6]} 2. Nf3 {[%clk 0:02:29.8]}
2... Nc6 {[%clk 0:02:57.9]} 3. c3 {[%clk 0:02:26.6]} 3... Nf6 {[%clk 0:02:52.1]}
4. d4 {[%clk 0:02:24]} 4... exd4 {[%clk 0:02:52.2]} 5. e5 {[%clk 0:02:23]} 5...
Nd5 {[%clk 0:02:41.6]} 6. Qb3 {[%clk 0:02:15.6]} 6... Nb6 {[%clk 0:02:27.8]} 7.
cxd4 {[%clk 0:01:49.7]} 7... d6 {[%clk 0:02:26.3]} 8. Bb5 {[%clk 0:01:44.1]}
8... Be6 {[%clk 0:02:11.8]} 9. Qc2 {[%clk 0:01:35.7]} 9... dxe5 {[%clk
0:01:51.6]} 10. Nxe5 {[%clk 0:01:21]} 10... Bb4+ {[%clk 0:01:50.5]} 11. Bd2
{[%clk 0:01:05.3]} 11... Bxd2+ {[%clk 0:01:49.6]} 12. Nxd2 {[%clk 0:01:06.2]}
12... O-O {[%clk 0:01:47.7]} 13. Nxc6 {[%clk 0:01:06.5]} 13... bxc6 {[%clk
0:01:47.4]} 14. Bxc6 {[%clk 0:01:07]} 14... Rb8 {[%clk 0:01:37.5]} 15. Nf3
{[%clk 0:01:06.2]} 15... Bc4 {[%clk 0:01:30.6]} 16. b3 {[%clk 0:00:57.7]} 16...
Qe7+ {[%clk 0:01:27.5]} 17. Kd1 {[%clk 0:00:40.5]} 17... Bd5 {[%clk 0:01:18.6]}
18. Re1 {[%clk 0:00:38.7]} 18... Qf6 {[%clk 0:01:13.5]} 19. Bxd5 {[%clk
0:00:36.3]} 19... Nxd5 {[%clk 0:01:13.3]} 20. Re5 {[%clk 0:00:32.8]} 20... Rfd8
{[%clk 0:01:10]} 21. Kc1 {[%clk 0:00:20.5]} 21... Rb6 {[%clk 0:00:58.1]} 22. Kb2
{[%clk 0:00:20.1]} 22... h6 {[%clk 0:00:49.5]} 23. Rae1 {[%clk 0:00:19.5]} 23...
g6 {[%clk 0:00:42.6]} 24. Qe4 {[%clk 0:00:17.6]} 24... Rbd6 {[%clk 0:00:33.7]}
25. h4 {[%clk 0:00:16.7]} 25... Kg7 {[%clk 0:00:32.6]} 26. h5 {[%clk 0:00:16.7]}
26... Nf4 {[%clk 0:00:32.2]} 27. hxg6 {[%clk 0:00:15.7]} 27... Nxg6 {[%clk
0:00:32.3]} 28. Rf5 {[%clk 0:00:14.3]} 28... Qe6 {[%clk 0:00:13.2]} 29. Qxe6
{[%clk 0:00:13.9]} 29... fxe6 {[%clk 0:00:13.2]} 30. Ra5 {[%clk 0:00:14.4]}
30... a6 {[%clk 0:00:12.9]} 31. g3 {[%clk 0:00:13.9]} 31... Ne7 {[%clk
0:00:12.2]} 32. Rae5 {[%clk 0:00:12.7]} 32... Kf6 {[%clk 0:00:11]} 33. R1e4
{[%clk 0:00:10.8]} 33... Nf5 {[%clk 0:00:11.1]} 34. Rf4 {[%clk 0:00:10.4]} 34...
Kg6 {[%clk 0:00:08.7]} 35. Kc3 {[%clk 0:00:08]} 35... Rc6+ {[%clk 0:00:08.1]}
36. Kd3 {[%clk 0:00:08.2]} 36... Rcd6 {[%clk 0:00:08.3]} 37. Rfe4 {[%clk
0:00:06.7]} 37... Kf6 {[%clk 0:00:07.8]} 38. g4 {[%clk 0:00:07.3]} 38... Ne7
{[%clk 0:00:07.3]} 39. Rf4+ {[%clk 0:00:07.7]} 39... Kg7 {[%clk 0:00:07.7]} 40.
Rfe4 {[%clk 0:00:03.9]} 40... Kf6 {[%clk 0:00:06.7]} 41. g5+ {[%clk 0:00:04.4]}
41... hxg5 {[%clk 0:00:06.5]} 42. Nxg5 {[%clk 0:00:05.3]} 42... Nc6 {[%clk
0:00:06.2]} 43. Rxe6+ {[%clk 0:00:03.8]} 43... Kxg5 {[%clk 0:00:05.8]} 44. Rxd6
{[%clk 0:00:03.5]} 44... Rxd6 {[%clk 0:00:05.6]} 45. Ke3 {[%clk 0:00:03.7]}
45... Kf5 {[%clk 0:00:05.5]} 46. f3 {[%clk 0:00:03.1]} 46... Re6 {[%clk
0:00:05.2]} 47. d5 {[%clk 0:00:03.7]} 47... Rxe4+ {[%clk 0:00:03.1]} 48. fxe4+
{[%clk 0:00:04.6]} 48... Ke5 {[%clk 0:00:03.8]} 49. dxc6 {[%clk 0:00:05.5]}
49... Kd6 {[%clk 0:00:04.3]} 50. Kd4 {[%clk 0:00:06.1]} 50... Kxc6 {[%clk
0:00:05.2]} 51. e5 {[%clk 0:00:06.6]} 51... Kd7 {[%clk 0:00:05.3]} 52. Kd5
{[%clk 0:00:07]} 52... Ke7 {[%clk 0:00:06.1]} 53. Kc6 {[%clk 0:00:07.5]} 53...
Ke6 {[%clk 0:00:06.4]} 54. Kxc7 {[%clk 0:00:08.1]} 54... Kxe5 {[%clk 0:00:07.3]}
55. Kb6 {[%clk 0:00:08.7]} 55... Kd4 {[%clk 0:00:08.2]} 56. Kxa6 {[%clk
0:00:09]} 1-0

[Event "*** Titled Tuesday Blitz"]
[Site "Chess.com"]
[Date "2021.04.20"]
[Round "5"]
[White "TimKett"]
[Black "PowerThinking2650"]
[Result "1/2-1/2"]
[WhiteElo "2243"]
[BlackElo "2396"]
[TimeControl "180+1"]
[EndTime "10:55:40 PDT"]
[Termination "Game drawn - insufficient material"]

1. e4 {[%clk 0:03:00.9]} 1... e5 {[%clk 0:02:59.8]} 2. f4 {[%clk 0:02:57.7]}
2... Bc5 {[%clk 0:02:58.6]} 3. Nf3 {[%clk 0:02:57.2]} 3... d6 {[%clk 0:02:59.2]}
4. Nc3 {[%clk 0:02:57.4]} 4... Nf6 {[%clk 0:02:58.2]} 5. Bc4 {[%clk 0:02:56.6]}
5... Nc6 {[%clk 0:02:57.9]} 6. d3 {[%clk 0:02:56.8]} 6... Bg4 {[%clk 0:02:57.3]}
7. Na4 {[%clk 0:02:55.8]} 7... Bb6 {[%clk 0:02:57]} 8. Nxb6 {[%clk 0:02:54.8]}
8... axb6 {[%clk 0:02:57.9]} 9. O-O {[%clk 0:02:54.8]} 9... Nd4 {[%clk
0:02:55.3]} 10. Be3 {[%clk 0:02:47.8]} 10... Nxf3+ {[%clk 0:02:51.9]} 11. gxf3
{[%clk 0:02:47.2]} 11... Bh3 {[%clk 0:02:52]} 12. Rf2 {[%clk 0:02:45.3]} 12...
exf4 {[%clk 0:02:51.4]} 13. Bxf4 {[%clk 0:02:44.5]} 13... Nh5 {[%clk 0:02:27.2]}
14. Be3 {[%clk 0:02:15.9]} 14... g5 {[%clk 0:02:26.8]} 15. f4 {[%clk 0:02:01.2]}
15... Nxf4 {[%clk 0:02:23.1]} 16. Bxf4 {[%clk 0:01:59.7]} 16... gxf4 {[%clk
0:02:23.2]} 17. Bxf7+ {[%clk 0:01:35.9]} 17... Kd7 {[%clk 0:02:16.7]} 18. Qh5
{[%clk 0:01:31.7]} 18... Rg8+ {[%clk 0:02:10.1]} 19. Bxg8 {[%clk 0:01:15.7]}
19... Qxg8+ {[%clk 0:02:06.8]} 20. Kh1 {[%clk 0:01:16.2]} 20... Bg4 {[%clk
0:01:51.6]} 21. Qh4 {[%clk 0:01:04.9]} 21... Be6 {[%clk 0:01:25.1]} 22. Rg1
{[%clk 0:00:59]} 22... Qh8 {[%clk 0:01:25.3]} 23. a3 {[%clk 0:00:53.7]} 23...
Qxb2 {[%clk 0:01:24.6]} 24. Qxh7+ {[%clk 0:00:52.4]} 24... Kc6 {[%clk
0:01:24.7]} 25. Qg7 {[%clk 0:00:37.9]} 25... Qxa3 {[%clk 0:01:01.9]} 26. h4
{[%clk 0:00:31.5]} 26... Rg8 {[%clk 0:00:55.4]} 27. Qf6 {[%clk 0:00:21.9]} 27...
Rxg1+ {[%clk 0:00:52.5]} 28. Kxg1 {[%clk 0:00:21.8]} 28... Qc1+ {[%clk
0:00:47.8]} 29. Kh2 {[%clk 0:00:20.6]} 29... Ba2 {[%clk 0:00:37.2]} 30. Qxf4
{[%clk 0:00:20.3]} 30... Qd1 {[%clk 0:00:36.8]} 31. Qf3 {[%clk 0:00:19.7]} 31...
Qc1 {[%clk 0:00:33.3]} 32. h5 {[%clk 0:00:19.8]} 32... Be6 {[%clk 0:00:30.1]}
33. Qf4 {[%clk 0:00:17.2]} 33... Qd1 {[%clk 0:00:28.4]} 34. h6 {[%clk 0:00:17]}
34... Qh5+ {[%clk 0:00:27.5]} 35. Kg1 {[%clk 0:00:14.2]} 35... Bh3 {[%clk
0:00:23.6]} 36. Qf3 {[%clk 0:00:12.1]} 36... Qxh6 {[%clk 0:00:19.9]} 37. e5+
{[%clk 0:00:11.4]} 37... d5 {[%clk 0:00:20.4]} 38. c4 {[%clk 0:00:09.9]} 38...
Be6 {[%clk 0:00:19.2]} 39. cxd5+ {[%clk 0:00:09.5]} 39... Bxd5 {[%clk
0:00:19.7]} 40. Qf6+ {[%clk 0:00:10.2]} 40... Qxf6 {[%clk 0:00:19.3]} 41. exf6
{[%clk 0:00:10.8]} 41... Bf7 {[%clk 0:00:19.6]} 42. Re2 {[%clk 0:00:11.4]} 42...
Kd6 {[%clk 0:00:16.7]} 43. Re7 {[%clk 0:00:12]} 43... Bd5 {[%clk 0:00:14.8]} 44.
Rg7 {[%clk 0:00:10.5]} 44... b5 {[%clk 0:00:12.4]} 45. f7 {[%clk 0:00:08.9]}
45... Ke7 {[%clk 0:00:12.4]} 46. f8=Q+ {[%clk 0:00:08.8]} 46... Kxf8 {[%clk
0:00:12.7]} 47. Rxc7 {[%clk 0:00:09.3]} 47... Ke8 {[%clk 0:00:12.5]} 48. Rc5
{[%clk 0:00:09.6]} 48... Bc6 {[%clk 0:00:12.4]} 49. Kf2 {[%clk 0:00:10]} 49...
Kd7 {[%clk 0:00:13]} 50. Ke3 {[%clk 0:00:10.4]} 50... Kd6 {[%clk 0:00:13.7]} 51.
Kd4 {[%clk 0:00:10.8]} 51... b6 {[%clk 0:00:13.4]} 52. Rh5 {[%clk 0:00:11]}
52... Bd7 {[%clk 0:00:13.5]} 53. Rh6+ {[%clk 0:00:11.2]} 53... Be6 {[%clk
0:00:14.1]} 54. Kc3 {[%clk 0:00:09.8]} 54... Kd5 {[%clk 0:00:13.1]} 55. d4
{[%clk 0:00:10.4]} 55... Bd7 {[%clk 0:00:11.1]} 56. Rxb6 {[%clk 0:00:08.3]}
56... Bc6 {[%clk 0:00:11.5]} 57. Kb4 {[%clk 0:00:07.3]} 57... Bd7 {[%clk
0:00:11.7]} 58. Rxb5+ {[%clk 0:00:04.9]} 58... Bxb5 {[%clk 0:00:11.6]} 59. Kxb5
{[%clk 0:00:05]} 59... Kxd4 {[%clk 0:00:12.5]} 1/2-1/2

[Event "*** Titled Tuesday Blitz"]
[Site "Chess.com"]
[Date "2021.04.20"]
[Round "5"]
[White "AndreyNeves"]
[Black "AttractiveMustard"]
[Result "1-0"]
[WhiteElo "2255"]
[BlackElo "2367"]
[TimeControl "180+1"]
[EndTime "10:55:43 PDT"]
[Termination "AndreyNeves won by resignation"]

1. d4 {[%clk 0:02:19.1]} 1... Nf6 {[%clk 0:02:57]} 2. c4 {[%clk 0:02:17.5]} 2...
g6 {[%clk 0:02:57.4]} 3. g3 {[%clk 0:02:15.7]} 3... Bg7 {[%clk 0:02:57.4]} 4.
Bg2 {[%clk 0:02:15.8]} 4... O-O {[%clk 0:02:58]} 5. Nf3 {[%clk 0:02:15.8]} 5...
d6 {[%clk 0:02:58.5]} 6. O-O {[%clk 0:02:15.8]} 6... Nbd7 {[%clk 0:02:59.1]} 7.
Nc3 {[%clk 0:02:13.8]} 7... e5 {[%clk 0:02:59.2]} 8. e3 {[%clk 0:02:14.3]} 8...
Qe7 {[%clk 0:02:54.2]} 9. b3 {[%clk 0:02:12.3]} 9... Re8 {[%clk 0:02:35.5]} 10.
Ba3 {[%clk 0:02:07.1]} 10... exd4 {[%clk 0:01:58.3]} 11. exd4 {[%clk 0:02:04.2]}
11... Qd8 {[%clk 0:01:47.8]} 12. Qd2 {[%clk 0:01:56.3]} 12... Ne4 {[%clk
0:01:39.5]} 13. Nxe4 {[%clk 0:01:53.3]} 13... Rxe4 {[%clk 0:01:40.4]} 14. Rfe1
{[%clk 0:01:52.9]} 14... Nf6 {[%clk 0:01:37.2]} 15. Rxe4 {[%clk 0:01:49.6]}
15... Nxe4 {[%clk 0:01:37.1]} 16. Qe3 {[%clk 0:01:45.9]} 16... Nf6 {[%clk
0:01:24.5]} 17. Re1 {[%clk 0:01:44.1]} 17... Bd7 {[%clk 0:01:20.9]} 18. Nd2
{[%clk 0:01:30.1]} 18... Qf8 {[%clk 0:01:11.8]} 19. Bxb7 {[%clk 0:01:24]} 19...
Re8 {[%clk 0:01:08.7]} 20. Ne4 {[%clk 0:01:22.8]} 20... Nxe4 {[%clk 0:00:30.1]}
21. Bxe4 {[%clk 0:01:22]} 21... Bf5 {[%clk 0:00:25.7]} 22. f3 {[%clk 0:01:14.3]}
22... Qe7 {[%clk 0:00:22.7]} 23. Bc1 {[%clk 0:00:54.1]} 23... c5 {[%clk
0:00:16]} 24. dxc5 {[%clk 0:00:49.9]} 24... dxc5 {[%clk 0:00:16.9]} 25. Kg2
{[%clk 0:00:45.9]} 25... Qd6 {[%clk 0:00:11.9]} 26. Qd2 {[%clk 0:00:34.8]} 26...
Qxd2+ {[%clk 0:00:03.7]} 27. Bxd2 {[%clk 0:00:34.4]} 27... Bxe4 {[%clk
0:00:03.3]} 28. Rxe4 {[%clk 0:00:32.7]} 28... Rd8 {[%clk 0:00:02.4]} 29. Re2
{[%clk 0:00:32.7]} 29... Bd4 {[%clk 0:00:02.3]} 30. f4 {[%clk 0:00:31.1]} 30...
f5 {[%clk 0:00:01.9]} 31. Kf3 {[%clk 0:00:30.3]} 31... Kf7 {[%clk 0:00:01.8]}
32. Be3 {[%clk 0:00:30.1]} 32... Rd7 {[%clk 0:00:01.8]} 33. Bxd4 {[%clk
0:00:30.2]} 33... cxd4 {[%clk 0:00:02.2]} 34. Rd2 {[%clk 0:00:28.5]} 34... Kf6
{[%clk 0:00:02.6]} 35. b4 {[%clk 0:00:27.6]} 35... g5 {[%clk 0:00:00.9]} 36.
fxg5+ {[%clk 0:00:27]} 36... Kxg5 {[%clk 0:00:01.5]} 37. h4+ {[%clk 0:00:26.3]}
37... Kf6 {[%clk 0:00:01.8]} 38. Kf4 {[%clk 0:00:26.5]} 38... Ke6 {[%clk
0:00:02]} 39. a4 {[%clk 0:00:23.5]} 39... Kf6 {[%clk 0:00:02.3]} 40. c5 {[%clk
0:00:21.6]} 40... Ke6 {[%clk 0:00:02.7]} 41. b5 {[%clk 0:00:21.9]} 41... Kd5
{[%clk 0:00:03.1]} 42. c6 {[%clk 0:00:22.3]} 42... Rd8 {[%clk 0:00:03.4]} 43.
Kxf5 {[%clk 0:00:22.3]} 43... Kc4 {[%clk 0:00:03.3]} 44. Ke6 {[%clk 0:00:21.2]}
44... Kc3 {[%clk 0:00:03.5]} 45. Rd1 {[%clk 0:00:20.1]} 45... d3 {[%clk
0:00:04.1]} 46. c7 {[%clk 0:00:20.2]} 46... Rc8 {[%clk 0:00:03.9]} 47. Kd7
{[%clk 0:00:20.1]} 47... Rg8 {[%clk 0:00:04.5]} 48. c8=Q+ {[%clk 0:00:18.8]}
48... Rxc8 {[%clk 0:00:04.6]} 49. Kxc8 {[%clk 0:00:19]} 49... Kc2 {[%clk
0:00:05.5]} 50. Rxd3 {[%clk 0:00:18.3]} 50... Kxd3 {[%clk 0:00:05.8]} 51. a5
{[%clk 0:00:19]} 51... Kc4 {[%clk 0:00:05.6]} 52. b6 {[%clk 0:00:19.1]} 52...
axb6 {[%clk 0:00:05.5]} 53. axb6 {[%clk 0:00:19.4]} 1-0

[Event "*** Titled Tuesday Blitz"]
[Site "Chess.com"]
[Date "2021.04.20"]
[Round "5"]
[White "CSB7"]
[Black "elextranjero00"]
[Result "1-0"]
[WhiteElo "2751"]
[BlackElo "2574"]
[TimeControl "180+1"]
[EndTime "10:55:44 PDT"]
[Termination "CSB7 won by resignation"]

1. d4 {[%clk 0:03:00.9]} 1... Nf6 {[%clk 0:02:58.9]} 2. Bf4 {[%clk 0:03:01.1]}
2... b6 {[%clk 0:02:46.2]} 3. Nc3 {[%clk 0:02:58.9]} 3... Bb7 {[%clk 0:02:45.1]}
4. f3 {[%clk 0:02:59.2]} 4... d6 {[%clk 0:02:33.4]} 5. e4 {[%clk 0:02:58.7]}
5... Nbd7 {[%clk 0:02:31.5]} 6. Nge2 {[%clk 0:02:55.3]} 6... e5 {[%clk
0:02:30.2]} 7. Be3 {[%clk 0:02:55.7]} 7... Be7 {[%clk 0:02:23.3]} 8. Qd2 {[%clk
0:02:50.7]} 8... O-O {[%clk 0:02:22.6]} 9. O-O-O {[%clk 0:02:50.6]} 9... Re8
{[%clk 0:02:17]} 10. d5 {[%clk 0:02:39.4]} 10... c6 {[%clk 0:02:14.8]} 11. dxc6
{[%clk 0:02:39]} 11... Bxc6 {[%clk 0:02:15.7]} 12. g4 {[%clk 0:02:39.4]} 12...
Nc5 {[%clk 0:02:13]} 13. Ng3 {[%clk 0:02:31.7]} 13... Bf8 {[%clk 0:02:01.8]} 14.
g5 {[%clk 0:02:21.6]} 14... Nfd7 {[%clk 0:01:59.7]} 15. Bc4 {[%clk 0:02:21]}
15... b5 {[%clk 0:01:51.8]} 16. Bxb5 {[%clk 0:01:50]} 16... Bxb5 {[%clk
0:01:30.4]} 17. Nxb5 {[%clk 0:01:50.9]} 17... Rb8 {[%clk 0:01:30.4]} 18. Nxd6
{[%clk 0:01:27.7]} 18... Bxd6 {[%clk 0:01:26.2]} 19. Qxd6 {[%clk 0:01:25.9]}
19... Qa5 {[%clk 0:01:26.8]} 20. Qd5 {[%clk 0:00:59]} 20... Qb4 {[%clk
0:01:26.4]} 21. b3 {[%clk 0:00:51.3]} 21... Qc3 {[%clk 0:00:51.2]} 22. Nf5
{[%clk 0:00:41.7]} 22... Rb5 {[%clk 0:00:22.4]} 23. Bxc5 {[%clk 0:00:10.7]}
23... Nxc5 {[%clk 0:00:16.3]} 24. Nd6 {[%clk 0:00:04.1]} 24... Nxb3+ {[%clk
0:00:12]} 25. Qxb3 {[%clk 0:00:02.4]} 25... Rxb3 {[%clk 0:00:12.2]} 26. axb3
{[%clk 0:00:03.3]} 26... Rd8 {[%clk 0:00:08.6]} 27. Kb1 {[%clk 0:00:03.6]} 27...
Qxf3 {[%clk 0:00:04.3]} 28. Rhf1 {[%clk 0:00:04]} 28... Qg4 {[%clk 0:00:03.8]}
29. Rd2 {[%clk 0:00:03.6]} 29... h6 {[%clk 0:00:03]} 30. gxh6 {[%clk 0:00:03.1]}
30... gxh6 {[%clk 0:00:03.9]} 31. Rff2 {[%clk 0:00:02]} 31... Kh8 {[%clk
0:00:04.2]} 32. Nxf7+ {[%clk 0:00:01.2]} 32... Kg7 {[%clk 0:00:04.8]} 33. Nxd8
{[%clk 0:00:01.7]} 33... Qxe4 {[%clk 0:00:05.1]} 34. Kb2 {[%clk 0:00:02.3]}
34... Qe3 {[%clk 0:00:04.9]} 35. Ne6+ {[%clk 0:00:02.7]} 35... Kg6 {[%clk
0:00:05.3]} 36. Nf8+ {[%clk 0:00:02.8]} 36... Kg7 {[%clk 0:00:05.4]} 37. Rfe2
{[%clk 0:00:01.8]} 37... Qf3 {[%clk 0:00:04.4]} 38. Nd7 {[%clk 0:00:02.3]} 38...
e4 {[%clk 0:00:04.3]} 39. Nc5 {[%clk 0:00:02.9]} 39... e3 {[%clk 0:00:04.3]} 40.
Rg2+ {[%clk 0:00:03.5]} 40... Kf6 {[%clk 0:00:03.9]} 41. Rde2 {[%clk 0:00:04.1]}
41... Ke5 {[%clk 0:00:03.6]} 42. Nd3+ {[%clk 0:00:04.4]} 42... Kd4 {[%clk
0:00:03.8]} 43. Nb4 {[%clk 0:00:01.9]} 43... Qe4 {[%clk 0:00:02.6]} 44. Nd3
{[%clk 0:00:02.3]} 44... a5 {[%clk 0:00:02.2]} 45. Ne1 {[%clk 0:00:02.7]} 45...
a4 {[%clk 0:00:02.2]} 46. c3+ {[%clk 0:00:03.2]} 46... Ke5 {[%clk 0:00:02.2]}
47. bxa4 {[%clk 0:00:03.5]} 47... Qc4 {[%clk 0:00:02.2]} 48. Nc2 {[%clk
0:00:03.4]} 48... Kd6 {[%clk 0:00:03.1]} 49. Nxe3 {[%clk 0:00:03.1]} 49... Qxa4
{[%clk 0:00:03.5]} 50. Rd2+ {[%clk 0:00:03.6]} 50... Kc5 {[%clk 0:00:03.3]} 51.
Nc2 {[%clk 0:00:04.1]} 51... Qb5+ {[%clk 0:00:03.3]} 52. Nb4 {[%clk 0:00:04.6]}
52... Qc4 {[%clk 0:00:03]} 53. Rd5+ {[%clk 0:00:05.1]} 53... Kb6 {[%clk
0:00:02.9]} 54. Rg6+ {[%clk 0:00:05.6]} 54... Kc7 {[%clk 0:00:03.5]} 55. Rc6+
{[%clk 0:00:05.3]} 1-0